Cogmind - Beta 15 @@@ ROGUE MODE // 2025.07.05 @ 18:04:14 Player: Asimov Result: Destroyed by H-61 Shepherd with Heavy Assault Cannon Performance ------------- Evolutions (2) 1000 Regions Visited (3) 600 Robots Destroyed (20) 100 Value Destroyed (651) 651 Prototype IDs (0) 0 Alien Tech Used (0) 0 Bonus (0) 0 TOTAL SCORE: 2351 Bonus ------- None Cogmind --------- Core Integrity 0/550 Matter 233/300 Energy 210/210 System Corruption 1% Temperature Cool (0) Movement Treading (160) Location -8/Materials Parts ------- > --- POWER (3) -------- Light Nuclear Core Light Angular Momentum Engine > --- PROPULSION (3) --- Light Treads Light Treads Light Treads > --- UTILITY (3) ------ Large Storage Unit Hardened Light Armor Plating Powered Armor > --- WEAPON (2) ------- Ion Cannon Flak Gun > --- INVENTORY (15) --- Light Treads Thermal Generator High-capacity Battery (250) Improved Terrain Scanner Particle Gun Flak Gun Katana Peak State ------------ > --- POWER ------------ Light Ion Engine Light Nuclear Core Light Angular Momentum Engine > --- PROPULSION ------- Aluminum Leg > --- UTILITY ---------- Small Storage Unit Improved Light Armor Plating Powered Armor > --- WEAPON ----------- Flak Gun Flak Gun > --- INVENTORY -------- Thermal Generator Heat Sink High-capacity Battery Improved Terrain Scanner Powered Armor Particle Gun Ion Cannon Katana [Rating: 28] Favorites ----------- Power Light Nuclear Core Engine Light Ion Engine Power Core Light Nuclear Core Propulsion Compact Wheel Treads Light Treads Leg Aluminum Leg Wheel Compact Wheel Utility Small Storage Unit Device ECM Suite Storage Small Storage Unit Processor Targeting Computer Protection Improved Light Armor Plating Weapon Flak Gun Energy Gun Particle Gun Energy Cannon Particle Cannon Ballistic Gun Flak Gun Ballistic Cannon Improved Light Cannon Launcher Grenade Launcher Slashing Weapon Scythe Build | -11 -10 -9 -8 ------- Run | Yrd Mat Mat Mat Slots Evolved 4 | . . 2 2 Power 2 | . . 1 1 Propulsion 1 | . . . 1 Utility 1 | . . 1 . Weapon . | . . . . Parts Attached 48 | 6 3 10 29 Power 11 | 1 1 3 6 Engine 6 | 1 1 1 3 Core 5 | . . 2 3 Reactor . | . . . . Propulsion 10 | 2 . 2 6 Treads 4 | . . . 4 Leg 1 | . . . 1 Wheel 5 | 2 . 2 1 Hover . | . . . . Flight . | . . . . Utility 11 | 1 1 1 8 Device 1 | . 1 . . Storage 2 | 1 . . 1 Processor 2 | . . 1 1 Hackware . | . . . . Protection 6 | . . . 6 Artifact . | . . . . Weapon 16 | 2 1 4 9 Energy Gun 5 | . 1 2 2 Energy Cannon 2 | . . . 2 Ballistic Gun 5 | 2 . . 3 Ballistic Cannon 2 | . . 2 . Launcher 1 | . . . 1 Special Weapon . | . . . . Impact Weapon . | . . . . Slashing Weapon 1 | . . . 1 Piercing Weapon . | . . . . Special Melee Weapon . | . . . . Unidentified Prototypes . | . . . . Parts Lost 18 | . . 1 17 Power 5 | . . . 5 Propulsion 5 | . . . 5 Utility 3 | . . 1 2 Weapon 5 | . . . 5 Highest Loss Streak 13 | . . 1 13 To Critical Strikes . | . . . . Average Backups 5 | 1 3 6 5 Power . | . 1 1 . Propulsion . | . . 1 . Utility 1 | . . . 2 Weapon 2 | . 2 4 2 Tool/Special . | . . . . Unused Backups 8 | . . 1 7 Power . | . . . . Propulsion 1 | . . . 1 Utility 4 | . . . 4 Weapon 3 | . . 1 2 Tool/Special . | . . . . Average Slot Usage (%) 77 | . 94 90 70 Engine 12 | . 14 20 9 Core 6 | . . 1 9 Treads 1 | . . . 1 Leg 2 | . . . 4 Wheel 12 | . 28 21 6 Device 3 | . 8 10 . Storage 10 | . 14 11 9 Processor 2 | . . 3 2 Protection 6 | . . . 9 Energy Gun 4 | . . 11 3 Energy Cannon 1 | . . . 1 Ballistic Gun 9 | . 27 . 9 Ballistic Cannon 3 | . . 10 2 Peak Build Rating 28 | 6 7 17 28 Average Rating 16 | 4 6 10 20 On Entrance 7 | . 6 7 16 Naked Turns . | . . . . Heaviest Build 62 | 11 15 24 62 Greatest Support 60 | 26 26 32 60 Greatest Overweight (x) 11 | . . 1 11 Average Overweight (x) . | . . . 2 Largest Inventory Capacity 15 | 8 8 8 15 Average Capacity 9 | 7 8 8 10 Most Carried 8 | 2 6 8 8 Average Carried 5 | 1 3 6 5 Final Capacity 15 | 8 8 8 15 Final Carried 8 | 2 6 8 7 Class Distribution -------------------- 71% | Mutant 28% | Scavenger-Mutant Dominant Class ---------------- Mutant | -10/Materials Mutant | -9/Materials Mutant | -8/Materials Resources | -11 -10 -9 -8 ----------- Run | Yrd Mat Mat Mat Matter Collected 1060 | 224 77 183 576 Remotely . | . . . . Salvage Created 678 | . 77 97 504 Parts 27 | . 4 2 21 Haulers Intercepted . | . . . . Recyclers Shooed . | . . . . Parts Field Recycled . | . . . . Retrieved Matter . | . . . . Parts Self-Destructed . | . . . . Prevented . | . . . . Kills | -11 -10 -9 -8 ------- Run | Yrd Mat Mat Mat Combat Hostiles Destroyed 17 | . 2 3 12 Guns 13 | . 2 1 10 Cannons 4 | . . 2 2 Classes Destroyed 6 | . 1 1 4 Worker 1 | . . . 1 Recycler 1 | . . . 1 Watcher 1 | . . . 1 Swarmer 4 | . . . 4 Grunt 10 | . 2 2 6 Sentry 3 | . . 1 2 Best Kill Streak 4 | . 2 2 4 Combat Bots Only 4 | . 2 2 4 Max Kills in Single Turn 2 | . 1 1 2 Gunslinging . | . . . . Exploded . | . . . . Melee . | . . . . Uniques/NPCs Destroyed . | . . . . Combat | -11 -10 -9 -8 -------- Run | Yrd Mat Mat Mat Hostile Shots Fired 133 | . 10 27 96 Missed 31 | . 4 6 21 Hits 102 | . 6 21 75 Projectile 102 | . 6 21 75 Critical Strikes 8 | . . 1 7 Damage Taken 2434 | . 66 303 2065 Core 627 | . . 50 577 Absorbed by Shields . | . . . . Regen/Repaired (Parts) 34 | . . 34 . Core Remaining (%) 95 | 100 100 87 . Volleys Fired 70 | . 7 14 49 Largest 2 | . 2 2 2 Hottest 101 | . 40 83 101 Shots Fired 130 | . 14 28 88 Gun 76 | . 14 14 48 Cannon 53 | . . 14 39 Launcher 1 | . . . 1 Special . | . . . . Kinetic 88 | . 14 14 60 Thermal 41 | . . 14 27 Explosive 1 | . . . 1 Electromagnetic . | . . . . Robot Hit Streak 6 | . 4 6 6 Robot Miss Streak 6 | . 2 2 6 Penetration Max . | . . . . Secondary Targets 1 | . . . 1 Max Gunslinging Chain 1 | . . . 1 Shots Hit Robots 90 | . 8 18 64 Core Hits 65 | . 3 5 57 Critical Kills . | . . . . Critical Parts Destroyed . | . . . . Critical Strikes 3 | . . 2 1 Burn 2 | . . 2 . Blast 1 | . . . 1 Melee Attacks 4 | . . . 4 Impact . | . . . . Slashing 4 | . . . 4 Piercing . | . . . . Sneak Attacks . | . . . . Combat Hostiles . | . . . . Follow-up Attacks . | . . . . Damage Inflicted 1592 | . 78 327 1187 Guns 884 | . 78 85 721 Cannons 653 | . . 239 414 Explosions 21 | . . . 21 Melee 31 | . . . 31 Ramming 3 | . . 3 . Kinetic 1167 | . 78 239 850 Thermal 370 | . . 85 285 Explosive 21 | . . . 21 Electromagnetic . | . . . . Impact . | . . . . Slashing 31 | . . . 31 Piercing . | . . . . Highest Corruption 1 | . 1 . 1 Average Corruption 1 | . 1 . 1 Corruption Purged . | . . . . Corruption Blocked . | . . . . Effects 10 | . . . 10 Message Errors 4 | . . . 4 Matter Fused 3 | . . . 3 Data Loss (minor) 1 | . . . 1 Data Loss (major) 2 | . . . 2 Overload Shots . | . . . . Overflow Damage 20 | . . . 20 Projectiles 20 | . . . 20 Explosions . | . . . . Melee . | . . . . Knockbacks 2 | . . 1 1 Impact . | . . . . Kinetic 2 | . . 1 1 Secondary . | . . . . Self-Inflicted Damage 1 | . . 1 . Shots . | . . . . Rammed 2 | . . 1 1 Targets Rammed 2 | . . 1 1 Kicked . | . . . . Crushed . | . . . . Highest Temperature 549 | . 12 306 549 Average Temperature 130 | . 6 132 134 Received Heat Transfer 513 | . 36 153 324 Effects 14 | . . 1 13 Shutdowns 6 | . . . 6 Energy Bleed 1 | . . 1 . Matter Decay 1 | . . . 1 Short Circuit 1 | . . . 1 Damage (minor) 2 | . . . 2 Damage (major) 3 | . . . 3 Siege Activations . | . . . . Martial Activations . | . . . . Shielding Activations . | . . . . Robots Disrupted . | . . . . Combat Hostiles . | . . . . Robots Corrupted . | . . . . Combat Hostiles . | . . . . Parts Fried . | . . . . Impact Corruptions . | . . . . Robots Melted . | . . . . Combat Hostiles . | . . . . Parts Melted 2 | . . 1 1 Heat Transferred 926 | . . 371 555 Parts Sabotaged . | . . . . Parts Stolen . | . . . . Parts Stripped . | . . . . Power Chain Reactions . | . . . . Alert | -11 -10 -9 -8 ------- Run | Yrd Mat Mat Mat Maximum Alert Level . | . . . . Low Security (%) 100 | 100 100 100 100 Level 1 . | . . . . Level 2 . | . . . . Level 3 . | . . . . Level 4 . | . . . . Level 5 . | . . . . High Security . | . . . . Max Security . | . . . . Peak Influence 102 | . 40 57 102 Initial 9 | . . 8 9 Average 19 | . 5 8 25 Influence Increases 524 | . 65 103 356 Destroy 0b10 Robot/C 340 | . 40 60 240 Destroy 0b10 Robot/NC 15 | . . . 15 Destroy Leader 82 | . 10 20 52 Successful Hack 7 | . . 7 . Disable Machine 15 | . . 15 . Destroy Structure 5 | . . 1 4 Partial Spotted 15 | . 15 . . Lose Combat Pursuer 45 | . . . 45 Influence Decreases 524 | . 45 100 379 Entered New Map 26 | . . 12 14 Time Decay 454 | . 45 78 331 Lost Part 44 | . . 10 34 Squads Dispatched 2 | . 1 . 1 Investigation . | . . . . Extermination . | . . . . Reinforcement 2 | . 1 . 1 Assault . | . . . . Garrison . | . . . . Intercept . | . . . . Searches Triggered . | . . . . Construction Impeded . | . . . . Haulers Reinforced . | . . . . Active Scanning Responses . | . . . . Cargo Convoy Interrupts . | . . . . Stealth | -11 -10 -9 -8 --------- Run | Yrd Mat Mat Mat Distress Signals 1 | . . . 1 Communications Jammed . | . . . . Distress Signals . | . . . . Times Spotted 30 | . 4 9 17 Peak Tracking Total 4 | . 2 3 4 Tactical Retreats 4 | . . 1 3 Traps | -11 -10 -9 -8 ------- Run | Yrd Mat Mat Mat Traps Triggered 2 | . 1 . 1 Indirectly . | . . . . Trap Hack Attempts . | . . . . Triggered . | . . . . Disarmed . | . . . . Reprogrammed . | . . . . Reused . | . . . . Traps Extracted . | . . . . Installed . | . . . . Triggered . | . . . . Machines | -11 -10 -9 -8 ---------- Run | Yrd Mat Mat Mat Machines Disabled 1 | . . 1 . Max in Single Turn 1 | . . 1 . Machines Repaired . | . . . . Machines Dismantled . | . . . . Machines Sabotaged . | . . . . Overloaded Fab Kills . | . . . . Hacking | -11 -10 -9 -8 --------- Run | Yrd Mat Mat Mat Machines Accessed 4 | . 1 3 . Terminals 3 | . 1 2 . Fabricators . | . . . . Repair Stations 1 | . . 1 . Recycling Units . | . . . . Scanalyzers . | . . . . Garrison Access . | . . . . Total Hacks 12 | . 3 9 . Successful 5 | . . 5 . Failed 7 | . 3 4 . Catastrophic . | . . . . Database Lockouts . | . . . . Manual . | . . . . Terminals 7 | . 3 4 . Fabricators . | . . . . Repair Stations 5 | . . 5 . Recycling Units . | . . . . Scanalyzers . | . . . . Garrison Access . | . . . . Terminal Hacks 1 | . . 1 . Zone Layout 1 | . . 1 . Fabricator Hacks . | . . . . Repair Station Hacks 4 | . . 4 . Scan Component 2 | . . 2 . Repair 2 | . . 2 . Recycling Unit Hacks . | . . . . Scanalyzer . | . . . . Garrison Access Hacks . | . . . . Unauthorized Hacks . | . . . . Terminals . | . . . . Fabricators . | . . . . Repair Stations . | . . . . Recycling Units . | . . . . Scanalyzers . | . . . . Garrison Access . | . . . . Data Cores Recovered . | . . . . Used . | . . . . Hacking Detections 2 | . . 2 . Full Trace Events . | . . . . Feedback Events . | . . . . Feedback Blocked . | . . . . Robot Schematics Acquired . | . . . . Robots Built . | . . . . Authchips . | . . . . Time . | . . . . Total Robot Build Rating . | . . . . Part Schematics Acquired . | . . . . Parts Built . | . . . . Authchips . | . . . . Time . | . . . . Total Part Build Rating . | . . . . Parts Repaired 2 | . . 2 . Time 52 | . . 52 . Parts Recycled . | . . . . Recycled Matter . | . . . . Retrieved Matter . | . . . . Retrieved Components . | . . . . Parts Scanalyzed . | . . . . Part Schematics Acquired . | . . . . Parts Damaged . | . . . . Bothacking | -11 -10 -9 -8 ------------ Run | Yrd Mat Mat Mat Used RIF Installer . | . . . . Robots Hacked . | . . . . Non-combat . | . . . . Combat . | . . . . Robot Hacks Applied . | . . . . Relay Couplers Released . | . . . . Fabnet Peak Effective % . | . . . . Robots Rewired . | . . . . Allies Hacked . | . . . . Hacks Repelled . | . . . . Allies | -11 -10 -9 -8 -------- Run | Yrd Mat Mat Mat Total Allies . | . . . . Largest Group . | . . . . Highest-Rated Group . | . . . . Highest-Rated Ally . | . . . . Total Orders . | . . . . Ally Attacks . | . . . . Total Damage . | . . . . Kills . | . . . . Allies Corrupted . | . . . . Allies Melted . | . . . . Intel | -11 -10 -9 -8 ------- Run | Yrd Mat Mat Mat Active Infowar (turns) 660 | . 181 479 . ECM 660 | . 181 479 . Robot Analysis Total . | . . . . Derelict Logs Recovered . | . . . . Drone Launches . | . . . . Drone Recoveries . | . . . . Exploration | -11 -10 -9 -8 ------------- Run | Yrd Mat Mat Mat Turns Passed 2468 | 70 281 514 1603 Spaces Moved 1336 | 69 272 416 579 Core 83 | 6 . . 77 Treads 57 | . . . 57 Legs 181 | . . . 181 Wheels 1015 | 63 272 416 264 Hover . | . . . . Flight . | . . . . Fastest Speed 50 | 50 90 90 93 Average Speed 153 | 85 90 94 233 Slowest Speed 600 | 90 90 115 600 Overloaded Moves . | . . . . Propulsion Burnouts . | . . . . Robots Hopped . | . . . . Potential Cave-ins . | . . . . Cave-ins Triggered . | . . . . Exploration Rate (%) 24 | 3 33 30 32 Regions Visited 3 Branch Regions . Pre-discovered Areas . | . . . . Known Exits Taken . | . . . . Unknown Exits Taken 3 | 1 1 1 . Scrap Searched . | . . . . Spaces Dug . | . . . . Terrain Destroyed 4 | . . 1 3 Melee . | . . . . Projectile 3 | . . 1 2 AOE 1 | . . . 1 Terrain Rammed . | . . . . Walls Destroyed . | . . . . Machines Disabled . | . . . . Actions | -11 -10 -9 -8 --------- Run | Yrd Mat Mat Mat Total 1604 | 76 293 508 727 Wait 87 | . 9 45 33 Move 1333 | 68 271 415 579 Hop . | . . . . Pick Up 27 | 2 3 7 15 Fast Attach 22 | 6 1 3 12 Attach 12 | . . 1 11 Detach 2 | . . 2 . Swap 25 | . 2 11 12 Drop 20 | . . 9 11 Fire 70 | . 7 14 49 Melee 4 | . . . 4 Ram 2 | . . 1 1 Kick . | . . . . Crush . | . . . . Escape Stasis . | . . . . Rewire . | . . . . Trap . | . . . . Miscellaneous . | . . . . Route ------- -11/Scrapyard -10/Materials -9/Materials -8/Materials History --------- Turn | Location | Event 25 | -11/Scrapyard | Discovered new exit (range 16) 71 | -11/Scrapyard | Entered Materials 306 | -10/Materials | Build established: Mutant 329 | -10/Materials | Discovered new exit (range 9) 352 | -10/Materials | Entered another Materials area 352 | -9/Materials | Evolved 2 slots: Power x1, Utility x1 419 | -9/Materials | Repaired Wheel 450 | -9/Materials | Repaired ECM Suite 758 | -9/Materials | Discovered new exit (range 16) 866 | -9/Materials | Entered another Materials area 866 | -8/Materials | Evolved 2 slots: Power x1, Propulsion x1 1288 | -8/Materials | Lost 13 parts (4p4n2u3w) 1297 | -8/Materials | Core integrity fell below 50% 1326 | -8/Materials | Core integrity fell below 20% 1329 | -8/Materials | Found Powered Armor 1343 | -8/Materials | Lost 3 parts (1n2w) 1869 | -8/Materials | Found Powered Armor 1875 | -8/Materials | Found Powered Armor 1971 | -8/Materials | Build established: Scavenger-Mutant 2469 | -8/Materials | Destroyed by H-61 Shepherd with Heavy Assault Cannon Last Messages --------------- 01978_ Dropped Sml. Storage Unit. 02038_ R-06 Scavenger collects Imp. Light Armor Plating. 02072_ System corrupted: Matter fused (-5). 02098_ PW%4# 02374_ Dropped Aluminum Leg. 02376_ Acquired Lgt. Treads. 02379_ Acquired Hrd. Light Armor Plating. 02386_ System corrupted: Matter fused (-9). 02421_ Acquired 12 matter. 02443_ Acquired 5 matter. 02452_ Acquired 4 matter. 02460_ Acquired 38 matter. 02463_ Lgt. Ion Engine destroyed. 02463_ Critical hit (Blast). 02464_ Acquired 6 matter. Map ----- +----------------------------------------------------+ | ?# #???? ########???????# #???????????????????? | | ?# #??R" # """ ?#????# #???????????????????? | | ?# # " " %# """"" #????# #???????????????????? | | ?# + # """"" #????# #???????????????????? | | ?# # [[ !# """"" #????+ #???????????????????? | | ## # [[ # """ #????# #????? ????????????? | | #?###### = #????# #????? ?????????????? | | #??????# #??### ###?? ?????????????? | | #??????# / "T" #??# #? " ?????????????? | | ############+######## # """ "???????????? | | #### % % # "" "???????????? | | [ =! %% H """ ????????????? | | ####### % ! % # "" "??????????? | | ?????## ###+########## %% #??"" "???????????? | | ???#### ## ? ????# #?????????????????? | | ??##! ##? #??## ##?????????????????? | | ??#! ^ #? #??## #??????????????????? | | ??#! ^^ ## #???# #??????????????????? | | ??#! ## #???# #??????????????????? | | ??#! ## #???# #??????????????????? | | ??##! ## #???# #??????????????????? | | ???#### ## ? #???#% #??????????????????? | | ??????# ## #???# #??????????????????? | | ?????## ##?#+#####????# #??????????????????? | | ?????# #?# #????????# #??????????????????? | | ?????# #?# #????????#@ #??????????????????? | | ?????# #?# #????????# k #??????????????????? | | ?????# #?# #?######## % #??????????????????? | | ?????# ### ### # #??????????????????? | | ####### ## # # ##?????????????????? | | # ## # # ##?????????????????? | | # " / """ # ##?????????????????? | | "" + ## # """ # ##########?????????? | | "T # ## # """ # # #?????????? | | "" # #### ####+##### # """ #?????????? | | !# #??# #??# #???# # """"" #?????????? | | ############## ##?# #???# # """"" #?????????? | | ## # ### #???# + """"" #?????????? | | ## """ + " #???# # """ #?????????? | | ## """ # ### #???# # #?????????? | | ## """ ## ##?# ##### # #?????????? | | "" ## ## #??# # #?????????? | | "T ## ! ## #??#########+############?????????? | | "" ########## #???#! #?????????????? | | #????????# #???# ! """"" #?????????????? | | ##+###???????# #???# != """"" #?????????????? | | #???????# #???# """"" #?????????????? | | #########[#???# #?????????????? | | [ = #???# """"" """"" #?????????????? | | #########"#???# """"" """"" #?????????????? | +----------------------------------------------------+ Best States ------------- Heat Dissipation 31 Energy Generation 32 Energy Capacity 400 Matter Stores 300 Matter Capacity 300 Sight Range 16 Terrain Scan Density 110 ECM Strength 1 Armor Coverage 550 Evasion (%) 44 Targeting Accuracy 5 Recoil Reduction 3 Item Schematics ----------------- None Robot Schematics ------------------ None Fabricated ------------ Nothing Repaired ---------- Wheel | 45% | -9/Materials ECM Suite | 40% | -9/Materials Alien Tech Used ----------------- None Achievements -------------- More Dakka Please Challenges ------------ None Game ------ Seed RingScatterFlakker Manual? 0 Play Time 00:22:24 Cumulative 12.6 hours Start 2025.07.05 @ 17:44:00 End 2025.07.05 @ 18:04:14 Sessions 1 Manual Loads 0 Difficulty Rogue Special Mode None Game No. 38 Rogue 38 Adventurer 0 Explorer 0 Win Type - Total 0 Types 0/0/0/0/0/0/0/0/0/0 Lore% 9 Gallery% 17 Achievement% 13 Wizard Run 0 Options --------- Layout 1 ASCII 0 Keyboard 0 Movement Arrows Keybinds 0 Fullscreen 1 Font 24/Smallcaps Map View 50x35 Zoom Use 0% Tactical HUD 1 Map Filters NONE Filters NONE Steam 1 RUN: e5b3527c-b735-44c0-a4fd-728678a0f739